[Event "85th ARM-ch HL 2025"]
[Site "Yerevan"]
[Date "2025.01.20"]
[Round "7.3"]
[White "Sargsyan, Sargis Vach."]
[Black "Agasarov, Benik"]
[Result "1-0"]
[Annotator "TA"]
[ECO "E48"]
[WhiteElo "2370"]
[BlackElo "2387"]
[PlyCount "73"]
[EventDate "2025.01.13"]
[EventType "tourn"]
[EventCountry "ARM"]
[SourceTitle "playchess.com"]
[Source "ChessBase"]
[SourceQuality "1"]
[TimeControl "40/5400+30:1800+30"]

{[%evp 11,73,0,8,0,0,-24,-11,-18,-14,-29,-25,-30,-16,-6,-17,-15,-12,-18,0,-28,-12,-38,66,20,29,21,18,0,0,56,0,0,0,0,0,7,70,70,79,85,56,75,159,171,173,154,168,173,342,344,317,294,306,308,297,286,288,279,347,338,460,455,503,490]} 1. d4 {[%emt 0:10:16]} Nf6 {[%emt 0:00:12]} 2. c4 {[%emt 0:00:07]} e6 {[%emt 0:00:03]} 3. Nc3 {[%emt 0:00:30]} Bb4 {[%emt 0:00:09]} 4. e3 {[%emt 0:00:32]} O-O {[%emt 0:00:07]} 5. Bd3 {[%emt 0:00:08]} d5 {[%emt 0:00:08]} 6. cxd5 {[%emt 0:01:24]} exd5 {[%emt 0:00:05]} 7. a3 {[%emt 0:00:08]} Bd6 {[%emt 0:04:07]} 8. Qc2 {[%emt 0:00:23]} c6 {[%emt 0:03:15]} 9. Nge2 {[%emt 0:00:25]} Re8 {[%emt 0:00:48]} 10. Bd2 {[%emt 0:00:24]} b6 {[%emt 0:00:04]} 11. f3 {[%emt 0:01:01]} c5 {[%emt 0:00:05]} 12. g4 {[%emt 0:00:53]} c4 {[%emt 0:00:12]} 13. Bf5 {[%emt 0:00:05]} Bxf5 {[%emt 0:00:06]} 14. Qxf5 {[%emt 0:00:03][%cal Og4g5]} g6 {[%emt 0:00:13]} 15. Qc2 {[%emt 0:00:12]} Nc6 {[%emt 0:08:34]} 16. h4 {[%emt 0:00:29]} Bf8 {[%emt 0:02:27]} (16... Na5 $15) 17. Kf2 {[%emt 0:02:41]} (17. h5 $14 {is superior.}) 17... Rb8 $11 {[%emt 0:14:59]} 18. Nf4 {[%emt 0:11:55]} b5 {[%emt 0:37:16]} 19. g5 {[%emt 0:05:09]} b4 $1 {[%emt 0:00:05]} 20. Nce2 $1 {[%emt 0:00:27]} (20. gxf6 bxc3 21. bxc3 Bh6 $17 (21... Qxf6 22. Nxd5 Qd8 23. e4 $18)) 20... bxa3 $1 {[%emt 0:02:51]} 21. bxa3 {[%emt 0:12:42]} Nh5 {[%emt 0:00:10]} 22. Nxh5 {[%emt 0:00:10]} gxh5 {[%emt 0:00:03]} 23. Nf4 {[%emt 0:00:39][%cal Oa1b1]} Bg7 {[%emt 0:00:30]} ({Black should try} 23... Qd7 $1 $11) 24. Rab1 $14 {[%emt 0:00:13] White is more active.} (24. Nxh5 Nxd4 25. exd4 Bxd4+ 26. Kg3 Rb2 $17) 24... Qd6 {[%emt 0:01:30]} 25. Rxb8 {[%emt 0:01:01]} (25. Nxh5 Nxd4 26. Qa4 (26. exd4 $2 Bxd4+ 27. Kf1 Qxa3 $19) 26... Nf5 27. Rxb8 Rxb8 $19) (25. Qa4 {looks sharper.} h6 26. Rhg1 hxg5 27. Rxb8 Rxb8 28. Rxg5 Rb2 29. Ke1) 25... Rxb8 {[%emt 0:25:01]} 26. Rb1 {[%emt 0:00:40] Repels Rb3} Rb6 {[%emt 0:00:00]} (26... a5 $142) 27. Rxb6 $1 $16 {[%emt 0:17:10]} (27. Nxh5 $2 Qh2+ (27... Qxa3 28. Rxb6 axb6 29. Be1 $11) 28. Kf1 Qh1+ (28... Qxh4 29. Rxb6 axb6 30. Nxg7 $17) (28... Rxb1+ $2 29. Qxb1 Qh1+ 30. Ke2 $19) 29. Kf2 Rxb1 $19) 27... axb6 {[%emt 0:00:00]} 28. Qa4 {[%emt 0:00:17][%cal Of2g2] Black must now prevent Kg2!.} Bf8 {[%emt 0:00:00] [#]} 29. Qb5 $1 {[%emt 0:07:14]} Ne7 $2 {[%emt 0:00:00]} (29... h6 30. Qxd5 Qxd5 31. Nxd5 b5 32. Nf6+ Kh8) 30. Bb4 $18 {[%emt 0:03:04]} (30. Nxh5 Qh2+ (30... Qxa3 $2 31. Nf6+ Kg7 32. Qb1 $18) 31. Kf1 Qxd2 $17) 30... Qc7 {[%emt 0:00:00]} 31. Qe8 {[%emt 0:11:30]} (31. Nxh5 Qh2+ 32. Kf1 Qh1+ 33. Ke2 Qg2+ 34. Ke1 Qxf3 35. Nf6+ Kg7 36. Qxb6 Qxe3+ 37. Kd1 Qd3+ 38. Ke1 (38. Kc1 $2 c3 $19) 38... Qg3+ 39. Ke2 Qg2+ (39... Qxh4 40. Qb8 $11) 40. Ke1 Qh1+ 41. Ke2 Qh2+ (41... Qxh4 42. Qb8 $11) 42. Kd1 Qxh4 43. Ne8+ Kh8 $11 (43... Kg8 44. Nf6+ Kh8 45. Qb8 $11)) 31... c3 {[%emt 0:00:00]} 32. Bxe7 {[%emt 0:01:01]} (32. Nxh5 Qh2+ 33. Kf1 c2 34. Nf6+ Kg7 35. Nh5+ Kg6 36. Nf4+ Qxf4 37. exf4 c1=Q+ (37... c1=B 38. Qxf8 Nf5 39. Qg8+ Ng7 40. h5+ Kxh5 41. Qxh7#) 38. Kf2 Qc2+ 39. Ke1 Nf5 40. Qxf8 Qc1+ (40... Nxd4 41. Qh6+ Kf5 42. Qf6#) 41. Kf2 Qe3+ (41... Qxf4 $2 42. Qg8+ Ng7 43. h5+ Kxg5 44. Qxg7+ $18) 42. Kg2 Qe2+ (42... Nxh4+ 43. Kh3 $11) 43. Kg1 Qxf3 44. Qg8+ Kh5 45. Qxf7+ Kg4 $15) 32... Qxe7 {[%emt 0:00:00]} 33. Qxe7 {[%emt 0:00:03]} Bxe7 {[%emt 0:00:00] [#]} 34. Ke2 $1 {[%emt 0:00:10]} (34. Nxh5 $2 c2 (34... Bxa3 $2 35. Nf4 $19) 35. Nf4 c1=Q $19 (35... c1=B 36. a4 $14)) 34... Bxa3 {[%emt 0:00:00] And now ...c2 would win.} 35. Kd3 {[%emt 0:00:06]} (35. Nxh5 $2 {perishes.} c2 36. Nf6+ Kh8 37. Nxd5 c1=Q $19 (37... c1=R $2 38. Nxb6 Rh1 39. f4 $19)) 35... Bd6 {[%emt 0:00:00]} 36. Nxh5 {[%emt 0:00:21]} ({Weaker is} 36. Nxd5 Bg3 $18) 36... b5 {[%emt 0:00:53]} 37. Kxc3 {[%emt 0:00:42]} 1-0

[Event "85th ARM-ch HL 2025"]
[Site "Yerevan"]
[Date "2025.01.20"]
[Round "7.4"]
[White "Hovhannisyan, Robert"]
[Black "Harutyunyan, Tigran K."]
[Result "1/2-1/2"]
[Annotator "TA"]
[ECO "B08"]
[WhiteElo "2626"]
[BlackElo "2513"]
[PlyCount "84"]
[EventDate "2025.01.13"]
[EventType "tourn"]
[EventCountry "ARM"]
[SourceTitle "playchess.com"]
[Source "ChessBase"]
[SourceQuality "1"]
[TimeControl "40/5400+30:1800+30"]

{[%evp 11,84,38,32,36,49,46,50,25,22,0,0,0,0,-13,-11,-4,0,0,0,0,0,0,0,-6,20,11,14,13,19,16,34,18,23,20,99,94,131,116,129,137,136,34,125,125,98,100,161,159,158,152,203,187,212,178,198,145,141,115,130,8,8,0,0,0,0,0,0,0,0,0,0,0,0,0,0]} 1. e4 {[%emt 0:00:03]} d6 {[%emt 0:01:28]} 2. d4 {[%emt 0:00:13]} Nf6 {[%emt 0:00:47]} 3. Nc3 {[%emt 0:00:06]} g6 {[%emt 0:00:04]} 4. Nf3 {[%emt 0:01:12]} Bg7 {[%emt 0:00:15]} 5. Be3 {[%emt 0:01:25]} O-O {[%emt 0:02:10]} 6. Qd2 {[%emt 0:01:05]} a6 {[%emt 0:00:06]} 7. Bh6 {[%emt 0:03:12]} b5 {[%emt 0:00:21]} 8. Bd3 {[%emt 0:01:59]} Nc6 {[%emt 0:00:57]} 9. Bxg7 {[%emt 0:06:51] White is slightly better.} (9. a4 {feels hotter.} Bg4 10. e5 Nh5 11. Bxg7 Nxg7 12. Be4) 9... Kxg7 {[%emt 0:00:04]} 10. d5 {[%emt 0:00:28]} Ne5 {[%emt 0:06:00]} 11. Nxe5 {[%emt 0:03:01]} dxe5 {[%emt 0:00:15]} 12. a4 {[%emt 0:04:35]} b4 {[%emt 0:04:10]} 13. Nd1 {[%emt 0:00:37][%cal Bc3d1,Bd1e3,Be3c4][%mdl 32]} a5 {[%emt 0:03:28]} 14. Qg5 {[%emt 0:06:41]} e6 {[%emt 0:04:24]} 15. dxe6 {[%emt 0:02:32]} Bxe6 {[%emt 0:01:21][%cal Bc8e6,Be6d5,Bd5e4][%mdl 32]} 16. Qxe5 {[%emt 0:01:52]} Re8 {[%emt 0:16:06]} 17. Qc5 {[%emt 0:22:25] Inhibits Bc4.} Bd5 {[%emt 0:01:58]} 18. Ne3 $1 {[%emt 0:06:36]} (18. f3 Bxe4 19. Bxe4 Nxe4 20. fxe4 Rxe4+ 21. Ne3 Qe8 $15) 18... Bxe4 {[%emt 0:00:51]} 19. O-O-O {[%emt 0:00:09]} Qe7 {[%emt 0:14:37]} 20. Qxe7 {[%emt 0:00:19]} Rxe7 {[%emt 0:00:02]} 21. Bxe4 {[%emt 0:02:47]} Nxe4 {[%emt 0:02:25][%cal Bf6e4,Be4f2,Bf2g4][%mdl 32]} 22. Rhe1 {[%emt 0:00:53] Black must now prevent Nd5.} Re6 {[%emt 0:03:47]} (22... Nxf2 $11 {remains equal.} 23. Nf5+ gxf5 24. Rxe7 Nxd1 25. Kxd1 Kf6 26. Rxc7 Re8) 23. Nc4 $16 {[%emt 0:02:30]} Nxf2 {[%emt 0:09:49]} 24. Rxe6 {[%emt 0:00:20]} fxe6 {[%emt 0:00:02][%mdl 4096] Endgame. KRN-KRN} (24... Nxd1 $2 25. Re2 Rd8 26. Nd2 $18 (26. Nxa5 f5 $18)) 25. Rd7+ {[%emt 0:05:55]} Kf6 {[%emt 0:00:13]} 26. Kd2 {[%emt 0:04:01]} (26. Rxc7 $16 g5 27. Rxh7) 26... c6 {[%emt 0:08:47]} ({Black should play} 26... Ne4+ $14 27. Ke3 Nd6 28. Rxc7 (28. Nxd6 cxd6 29. Rxd6 Rc8 $11) 28... Nxc4+ 29. Rxc4 e5) 27. Ke3 {[%emt 0:04:01][%mdl 1024] White has strong compensation.} Ng4+ {[%emt 0:00:39]} 28. Kf4 {[%emt 0:00:25]} h5 {[%emt 0:03:02]} (28... b3 $16 29. cxb3 (29. Kxg4 $2 bxc2 30. Nd6 c1=Q $19) 29... h5) 29. h3 $18 {[%emt 0:00:21]} g5+ {[%emt 0:02:07][%cal Bg6g5,Bg5g4][%mdl 32] [#]} 30. Ke4 $1 {[%emt 0:00:24] White is more active.} Nf2+ {[%emt 0:02:02] [#]} (30... Nh6 $16 31. Ne5 b3) 31. Kf3 $1 {[%emt 0:02:47]} Nh1 {[%emt 0:00:11]} 32. Rd1 {[%emt 0:01:31]} g4+ {[%emt 0:00:21]} 33. Kf4 {[%emt 0:00:33]} (33. hxg4 $18 hxg4+ 34. Kf4) 33... e5+ $16 {[%emt 0:02:18]} (33... Nf2 $2 34. Rf1 Nxh3+ 35. gxh3 gxh3 36. Kg3+ Ke7 37. Kxh3 $18) 34. Nxe5 {[%emt 0:00:26]} gxh3 {[%emt 0:01:34]} 35. Rxh1 {[%emt 0:09:40]} (35. gxh3 $16 Nf2 36. Rd6+ Kg7 37. Re6 (37. Rxc6 Rf8+ 38. Ke3 Nd1+ 39. Ke4 Nxb2 $11)) 35... hxg2 {[%emt 0:00:11] KRN-KR. The position is equal.} 36. Rg1 {[%emt 0:00:02]} (36. Rxh5 $2 {too greedy.} g1=Q 37. Ng4+ Ke7 $19) 36... Rg8 {[%emt 0:00:21]} 37. Nd3 {[%emt 0:03:13]} (37. Nf3 $5 Rg4+ $8 38. Ke3 $11) 37... h4 {[%emt 0:00:35] aiming for ...h3.} 38. Nf2 {[%emt 0:00:22] Hoping for Ng4+.} Ke6 {[%emt 0:00:31]} 39. Nh3 {[%emt 0:02:15]} Kd5 {[%emt 0:00:17]} 40. Nf2 {[%emt 0:00:00]} ({Don't blunder} 40. Ng5 $2 Rxg5 (40... Rf8+ $2 41. Ke3 $18) 41. Kxg5 h3 $19) 40... Kc4 {[%emt 0:00:00]} 41. Ke3 {[%emt 0:15:02]} h3 {[%emt 0:08:52]} 42. Nxh3 {[%emt 0:00:11] And now Nf4 would win.} Rg3+ {[%emt 0:00:07] Blacks defense is rewarded with a draw.   Weighted Error Value: White=0.13 (very precise) /Black=0.15 (very precise) .  Mistake:       	White=3     	Black=4      Inaccurate:     	---       	Black=2      OK:         	White=18    	Black=12     Best:        	White=7     	Black=3      Strong:       	White=3     	---} 1/2-1/2

[Event "85th ARM-ch HL 2025"]
[Site "Yerevan"]
[Date "2025.01.20"]
[Round "7.5"]
[White "Hayrapetyan, Hovik"]
[Black "Grigoryan, Karen H."]
[Result "0-1"]
[Annotator "RC"]
[ECO "A40"]
[WhiteElo "2462"]
[BlackElo "2572"]
[PlyCount "142"]
[EventDate "2025.01.13"]
[EventType "tourn"]
[EventCountry "ARM"]
[SourceTitle "playchess.com"]
[Source "ChessBase"]
[SourceQuality "1"]
[TimeControl "40/5400+30:1800+30"]

1. d4 {[%emt 0:00:07]} g6 {[%emt 0:09:36]} 2. c4 {[%emt 0:00:35]} Bg7 {[%emt 0:00:25]} 3. Nc3 {[%emt 0:00:10]} e6 {[%emt 0:02:44]} 4. Nf3 {[%emt 0:00:39]} Ne7 {[%emt 0:00:20]} 5. e4 {[%emt 0:00:39]} d5 {[%emt 0:00:23]} 6. Be2 {[%emt 0:03:37]} dxe4 {[%emt 0:03:05]} 7. Nxe4 {[%emt 0:00:26]} h6 {[%emt 0:00:23]} 8. O-O {[%emt 0:01:45]} Nbc6 {[%emt 0:02:41]} 9. Qa4 {[%emt 0:01:45]} O-O {[%emt 0:04:19]} 10. Rd1 {[%emt 0:00:43]} Nf5 {[%emt 0:00:35]} 11. Be3 {[%emt 0:10:19]} Ncxd4 {[%emt 0:09:44]} 12. Nxd4 {[%emt 0:06:28]} Nxd4 {[%emt 0:06:14]} 13. Rxd4 {[%emt 0:06:10]} Bxd4 {[%emt 0:00:12]} 14. Rd1 {[%emt 0:00:03]} e5 {[%emt 0:00:13]} 15. Bxh6 {[%emt 0:06:40]} Bf5 {[%emt 0:04:20]} 16. Ng3 {[%emt 0:22:19]} Bd7 {[%emt 0:03:45]} 17. Qc2 {[%emt 0:00:20]} Re8 {[%emt 0:01:48]} 18. Qc1 {[%emt 0:02:49]} Bc6 {[%emt 0:07:06]} 19. Bg5 {[%emt 0:02:07]} Qd6 {[%emt 0:01:14]} 20. h4 {[%emt 0:02:22]} Qc5 {[%emt 0:08:09]} 21. b4 {[%emt 0:02:30]} Qxb4 {[%emt 0:03:22]} 22. Bf6 {[%emt 0:09:07]} Re6 {[%emt 0:02:01]} 23. Nh5 {[%emt 0:02:52]} gxh5 {[%emt 0:11:17]} 24. Qg5+ {[%emt 0:00:06]} Kf8 {[%emt 0:00:04]} 25. Bxh5 {[%emt 0:00:39]} Rxf6 {[%emt 0:00:20]} 26. Qxf6 {[%emt 0:00:04]} Be8 {[%emt 0:00:07]} 27. Qh6+ {[%emt 0:02:13]} Ke7 {[%emt 0:00:08]} 28. Qg5+ {[%emt 0:00:32]} f6 {[%emt 0:01:52]} 29. Qg7+ {[%emt 0:00:05]} Kd8 {[%emt 0:00:26]} 30. Bxe8 {[%emt 0:06:19]} Kxe8 {[%emt 0:00:17]} 31. Qg8+ {[%emt 0:08:34]} Qf8 {[%emt 0:00:17]} 32. Qe6+ {[%emt 0:00:02]} Kd8 {[%emt 0:00:52]} 33. Rd3 {[%emt 0:02:08]} c5 {[%emt 0:01:58]} 34. Rf3 {[%emt 0:01:14]} e4 {[%emt 0:00:54]} 35. Qxe4 {[%emt 0:00:08]} Qe7 {[%emt 0:01:09]} 36. Qg6 {[%emt 0:01:20]} Kc7 {[%emt 0:00:30]} 37. h5 {[%emt 0:00:33]} Qe6 {[%emt 0:05:57]} 38. Qh7+ {[%emt 0:00:29]} Qd7 {[%emt 0:00:50]} 39. Qg6 {[%emt 0:00:30]} Rh8 {[%emt 0:00:46]} 40. g4 {[%emt 0:00:00]} Kb8 {[%emt 0:00:00]} 41. Kg2 {[%emt 0:03:57]} Qe6 {[%emt 0:09:17]} 42. Qf5 {[%emt 0:00:43]} Qxc4 {[%emt 0:02:01]} 43. h6 {[%emt 0:00:03]} Qg8 {[%emt 0:01:12]} 44. Rh3 {[%emt 0:00:40]} Qg5 {[%emt 0:01:18]} 45. Qxg5 {[%emt 0:00:04]} fxg5 {[%emt 0:00:06]} 46. f4 {[%emt 0:00:02]} gxf4 {[%emt 0:02:09]} 47. Kf3 {[%emt 0:00:01]} c4 {[%emt 0:04:25]} 48. g5 {[%emt 0:00:28]} c3 {[%emt 0:02:30]} 49. Rh2 {[%emt 0:00:03]} Rc8 {[%emt 0:02:45]} 50. Rc2 {[%emt 0:00:07]} b5 {[%emt 0:02:04]} 51. Kxf4 {[%emt 0:01:47]} b4 {[%emt 0:01:12]} 52. Ke4 {[%emt 0:00:04]} Bh8 {[%emt 0:02:25]} 53. Kd3 {[%emt 0:00:15]} Rd8+ {[%emt 0:02:14]} 54. Kc4 {[%emt 0:08:44]} Rg8 {[%emt 0:00:32]} 55. Rg2 {[%emt 0:01:04]} c2 {[%emt 0:00:23]} 56. Rxc2 {[%emt 0:00:09]} Rxg5 {[%emt 0:00:07]} 57. Kxb4 {[%emt 0:01:09]} Rh5 {[%emt 0:00:36]} 58. Rc6 {[%emt 0:00:05]} Be5 {[%emt 0:01:33]} 59. Rg6 {[%emt 0:01:28]} Kc7 {[%emt 0:00:55]} 60. Kc4 {[%emt 0:00:07]} Bd6 {[%emt 0:02:48]} 61. Rg7+ {[%emt 0:00:21]} Kb6 {[%emt 0:00:06]} 62. h7 {[%emt 0:00:08]} a5 {[%emt 0:00:50]} 63. Rf7 {[%emt 0:04:18]} Kc6 {[%emt 0:00:47]} 64. Kb3 {[%emt 0:01:10]} Rh3+ {[%emt 0:00:07]} 65. Kc2 {[%emt 0:00:24]} a4 {[%emt 0:00:49]} 66. Ra7 {[%emt 0:00:45]} Kb5 {[%emt 0:00:28]} 67. Rb7+ {[%emt 0:02:48]} Kc4 {[%emt 0:00:35]} 68. Rf7 {[%emt 0:02:03]} Rh2+ {[%emt 0:00:10]} 69. Kb1 {[%emt 0:01:13]} Be5 {[%emt 0:00:39]} 70. Re7 {[%emt 0:00:14]} Kc3 {[%emt 0:01:19]} 71. a3 {[%emt 0:00:05]} Bd4 {[%emt 0:00:34]} 0-1

[Event "85th ARM-ch HL 2025"]
[Site "Yerevan"]
[Date "2025.01.21"]
[Round "8.1"]
[White "Davtyan, Artur"]
[Black "Grigoryan, Karen H."]
[Result "1/2-1/2"]
[Annotator "TA"]
[ECO "D55"]
[WhiteElo "2458"]
[BlackElo "2572"]
[PlyCount "83"]
[EventDate "2025.01.13"]
[EventType "tourn"]
[EventCountry "ARM"]
[SourceTitle "playchess.com"]
[Source "ChessBase"]
[SourceQuality "1"]
[TimeControl "40/5400+30:1800+30"]

{[%evp 18,83,4,3,1,0,0,0,18,6,12,8,43,46,42,40,79,75,73,64,83,83,89,85,97,74,99,27,47,21,27,25,26,0,18,0,0,0,0,0,0,-135,-140,-129,0,-83,0,0,0,0,0,-52,-56,-64,-50,-66,0,0,0,0,0,0,0,0,0,0,7,8]} 1. d4 {[%emt 0:00:18]} Nf6 {[%emt 0:00:08]} 2. c4 {[%emt 0:00:05]} e6 {[%emt 0:00:07]} 3. Nf3 {[%emt 0:00:05]} d5 {[%emt 0:00:06]} 4. Nc3 {[%emt 0:00:06]} Be7 {[%emt 0:00:37]} 5. Bg5 {[%emt 0:07:49]} O-O {[%emt 0:02:59]} 6. e3 {[%emt 0:01:20]} b6 {[%emt 0:02:39]} 7. cxd5 {[%emt 0:00:44]} Nxd5 {[%emt 0:00:11]} 8. Bxe7 {[%emt 0:00:05]} Qxe7 {[%emt 0:00:06]} 9. Nxd5 {[%emt 0:00:04]} exd5 {[%emt 0:00:06]} 10. Qb3 {[%emt 0:00:03]} Be6 {[%emt 0:00:26]} 11. Rc1 {[%emt 0:00:08]} Rc8 {[%emt 0:02:42]} 12. Be2 {[%emt 0:00:46]} c5 {[%emt 0:01:11]} 13. Qa3 {[%emt 0:00:04]} a5 {[%emt 0:05:54]} 14. O-O {[%emt 0:00:22]} Ra7 {[%emt 0:00:28]} 15. dxc5 {[%emt 0:01:02]} bxc5 {[%emt 0:00:06]} 16. Rc3 {[%emt 0:10:23]} c4 {[%emt 0:08:35]} 17. Qxe7 $1 {[%emt 0:02:10]} Rxe7 {[%emt 0:01:18]} 18. b3 $1 {[%emt 0:03:11]} Rec7 {[%emt 0:18:34] [#]} 19. bxc4 $1 {[%emt 0:04:02]} dxc4 {[%emt 0:02:08]} 20. Nd4 {[%emt 0:00:19]} Bd5 {[%emt 0:02:45]} 21. Rd1 {[%emt 0:06:19][%cal Oe3e4]} Nd7 {[%emt 0:07:37]} 22. Nb5 {[%emt 0:19:49] White is more active.} ({Better is} 22. e4 $16 Be6 (22... Bxe4 $2 23. Nb5 $18) 23. f4) 22... Rc5 $11 {[%emt 0:00:16]} 23. Bg4 {[%emt 0:11:36]} Be6 $1 {[%emt 0:05:05]} 24. Bxe6 {[%emt 0:03:53]} fxe6 {[%emt 0:00:12]} 25. Nd4 {[%emt 0:05:34]} (25. Nd6 $5 R8c6 26. Ne4 $11) 25... Rd5 {[%emt 0:05:10]} 26. Rb1 {[%emt 0:04:40]} e5 {[%emt 0:03:06]} 27. Nf5 {[%emt 0:01:07]} Kf8 {[%emt 0:00:15] Repels Ne7} 28. Kf1 {[%emt 0:02:20]} Rd2 {[%emt 0:07:58][%cal Og7g6] Dodges Rc2} 29. Rb7 {[%emt 0:08:14]} (29. e4 $11) 29... Nf6 $1 $17 {[%emt 0:02:23]} 30. Rc1 {[%emt 0:02:36]} g6 {[%emt 0:06:16]} (30... Rxa2 31. Nd6 Rd8 32. Nxc4 $16) ({Black should try} 30... c3 $17 {and ...Ne4 should not be overlooked} 31. Ke1 Ne4 (31... Rxa2 $2 32. Rxg7 Rb8 33. Rc7 $19) 32. Rxg7 Nxf2 (32... Rxa2 33. Rxh7 Rc5 34. Rh6 $17) 33. Rxc3 Rd1+ 34. Kxf2 Rxc3 35. Rxh7 Rd2+ 36. Kf3 e4+ (36... Rxa2 37. g4 $11) 37. Kxe4 Rxa2 (37... Rxg2 38. Ke5 $11)) 31. Nh6 {[%emt 0:00:32] [#]} (31. Ke1 $1 $11 {remains equal.} c3 (31... Rxa2 $2 32. Nd6 $18) 32. Ne7 (32. Rxc3 $2 Rxc3 33. Kxd2 Ne4+ 34. Kd1 gxf5 $19)) 31... Rd7 {[%emt 0:02:37]} (31... c3 $1 $17 {[%cal Rc3c2]} 32. Ke1 (32. Rf7+ Ke8 $17) 32... Ne4 (32... Rxa2 $2 33. Rf7+ Ke8 34. Rxf6 $18) 33. Rxh7 Rc5 (33... Rxa2 $2 34. Rh8+ Kg7 35. Rxc8 $18) 34. Rf7+ Ke8) 32. Rxd7 $1 $11 {[%emt 0:01:12]} Nxd7 {[%emt 0:00:06][%mdl 4096] Endgame KRN-KRN} 33. f3 {[%emt 0:01:18]} Nf6 {[%emt 0:02:48]} 34. g4 {[%emt 0:03:01]} (34. h3 $11) 34... Nd5 $15 {[%emt 0:04:09]} 35. Ke2 {[%emt 0:01:37]} c3 {[%emt 0:00:34]} 36. g5 {[%emt 0:01:02]} Rb8 {[%emt 0:00:27]} (36... Ke7 $15) 37. Ng4 $11 {[%emt 0:00:29]} Rb2+ {[%emt 0:00:29]} 38. Kd3 {[%emt 0:00:01]} Rxa2 {[%emt 0:00:57]} 39. Kc4 $1 {[%emt 0:00:30]} Rd2 {[%emt 0:00:39]} 40. e4 $1 {[%emt 0:00:00]} Nf4 {[%emt 0:00:00]} ({Wrong is} 40... Rd4+ $2 41. Kb5 $18 (41. Kc5 Nf4 $11)) 41. Rxc3 {[%emt 0:08:20][%cal Oh2h4]} (41. Nxe5 $2 Ne2 (41... Rxh2 42. Rxc3 Rh5 43. Ra3 $11) 42. Re1 Rd4+ 43. Kc5 c2 44. Rxe2 c1=Q+ $19 (44... c1=R+ $2 {too greedy.} 45. Kxd4 Rd1+ 46. Nd3 $18)) 41... Nh3 {[%emt 0:07:25]} 42. Nxe5 {[%emt 0:01:44]} 1/2-1/2

[Event "85th ARM-ch HL 2025"]
[Site "Yerevan"]
[Date "2025.01.21"]
[Round "8.2"]
[White "Harutyunyan, Tigran K."]
[Black "Hayrapetyan, Hovik"]
[Result "1-0"]
[Annotator "TA"]
[ECO "E24"]
[WhiteElo "2513"]
[BlackElo "2462"]
[PlyCount "85"]
[EventDate "2025.01.13"]
[EventType "tourn"]
[EventCountry "ARM"]
[SourceTitle "playchess.com"]
[Source "ChessBase"]
[SourceQuality "1"]
[TimeControl "40/5400+30:1800+30"]

{[%evp 10,85,-14,-19,-26,-18,-20,-48,-29,-6,0,-4,22,22,38,26,33,0,12,-18,-16,-9,22,9,0,-33,-37,-9,-9,-17,-11,-10,-10,-59,0,0,0,0,0,0,0,0,0,0,0,0,12,8,6,6,8,8,17,0,31,23,23,23,143,120,160,145,104,64,184,24,5377,4235,12836,29966,29969,29969,29975,29977,29976,29977,29980,29982]} 1. d4 {[%emt 0:00:08]} Nf6 {[%emt 0:00:05]} 2. c4 {[%emt 0:00:17]} e6 {[%emt 0:00:07]} 3. Nc3 {[%emt 0:00:29]} Bb4 {[%emt 0:00:06]} 4. a3 {[%emt 0:00:31]} Bxc3+ {[%emt 0:01:25]} 5. bxc3 {[%emt 0:00:36]} b6 {[%emt 0:00:05]} 6. f3 {[%emt 0:00:20]} Nc6 {[%emt 0:00:17]} 7. e4 {[%emt 0:00:13]} Na5 {[%emt 0:04:32]} 8. Bg5 {[%emt 0:01:56]} h6 {[%emt 0:00:43] Black is slightly better.} 9. Bh4 {[%emt 0:00:10]} d6 {[%emt 0:01:38]} 10. Bd3 {[%emt 0:05:30]} c5 {[%emt 0:03:42]} 11. f4 {[%emt 0:02:29]} Bb7 {[%emt 0:08:09]} 12. Nf3 {[%emt 0:01:33] e5 would now be deadly.} Qc7 {[%emt 0:07:26]} 13. Bxf6 {[%emt 0:10:12]} gxf6 {[%emt 0:00:07]} 14. Nd2 {[%emt 0:00:12]} O-O-O {[%emt 0:02:25][%cal Of6f5]} 15. O-O {[%emt 0:00:07]} h5 {[%emt 0:01:18]} 16. d5 {[%emt 0:01:29]} f5 {[%emt 0:01:10]} 17. Nb3 {[%emt 0:06:53]} Nxb3 {[%emt 0:01:44]} 18. Qxb3 {[%emt 0:00:35]} fxe4 {[%emt 0:00:02]} 19. Bxe4 {[%emt 0:00:13]} exd5 {[%emt 0:00:02]} 20. cxd5 {[%emt 0:02:05]} c4 {[%emt 0:00:18]} 21. Qb4 {[%emt 0:11:57]} (21. Qd1 $11) 21... Rde8 {[%emt 0:09:00]} ({Better is} 21... Rhe8 $15 22. Rfe1 a5) 22. Bf3 {[%emt 0:04:48]} Re3 {[%emt 0:02:36]} 23. Rae1 {[%emt 0:07:23]} Rhe8 {[%emt 0:03:11]} 24. Rxe3 {[%emt 0:10:59]} Rxe3 {[%emt 0:00:15]} 25. Kf2 {[%emt 0:01:53]} Rd3 {[%emt 0:10:43]} 26. Rd1 {[%emt 0:03:00]} Rxd1 {[%emt 0:00:44]} 27. Bxd1 {[%emt 0:00:30]} Bxd5 $11 {[%emt 0:03:31][%mdl 4096] Endgame. KQB-KQB} 28. Qb5 {[%emt 0:00:24]} ({Much weaker is} 28. Bxh5 Qc6 $15) 28... Qc5+ {[%emt 0:07:11]} 29. Qxc5+ {[%emt 0:00:09]} dxc5 {[%emt 0:00:02]} 30. Bxh5 {[%emt 0:01:04] KB-KB} b5 {[%emt 0:00:28]} 31. Bd1 {[%emt 0:01:43]} Be4 {[%emt 0:07:36]} 32. g4 {[%emt 0:02:13]} a5 {[%emt 0:07:50]} 33. Ke3 {[%emt 0:00:12]} Bd3 {[%emt 0:02:24]} (33... Bb1 $11) 34. h4 $16 {[%emt 0:05:23][%cal Bh2h4,Bh4h5][%mdl 32] aiming for h5.} Kd8 {[%emt 0:02:14]} 35. h5 {[%emt 0:00:32]} Ke7 {[%emt 0:00:14]} 36. h6 {[%emt 0:02:10] And now a4 would win.} Kf8 {[%emt 0:01:02] [#]} ({Black should try} 36... Bb1 $1 $14) 37. g5 $2 {[%emt 0:06:50]} (37. a4 $1 $18 {[%cal Ra4b5]} b4 38. cxb4 cxb4 39. Kd4) 37... b4 {[%emt 0:05:23][%mdl 8192] A mistake that costs the game.} (37... Bf5 $11) 38. cxb4 $18 {[%emt 0:02:21]} cxb4 {[%emt 0:00:06]} 39. axb4 {[%emt 0:00:05]} axb4 {[%emt 0:00:04] White mates.} 40. Kd4 {[%emt 0:00:00]} Bf1 {[%emt 0:00:00]} 41. Bc2 {[%emt 0:00:53]} Kg8 {[%emt 0:17:25]} 42. f5 {[%emt 0:05:20][%cal Bf4f5,Bf5f6][%mdl 32]} Be2 {[%emt 0:11:02]} 43. f6 {[%emt 0:03:07] Weighted Error Value: White=0.12 (very precise) /Black=0.15 (very precise) .  Loses game:     	---       	Black=1      Mistake:       	White=2     	Black=3      Inaccurate:     	White=2     	Black=5      OK:         	White=17    	Black=13     Best:        	White=2     	Black=1} 1-0